bitfinex-derivatives/quotes_BTCF0:USTF0_20240814
["timestamp","ask_amount","ask_price","bid_price","bid_amount"]
[1723634299898,0.37039092,61012.0,61006.0,0.362]
[1723634300195,0.37039092,61012.0,61011.0,0.3608]
[1723634300196,0.00959092,61012.0,61011.0,0.3608]
[1723634300403,0.4398,61028.0,61011.0,0.3608]
[1723634300585,0.4398,61028.0,61012.0,0.2835]
[1723634301906,0.15479106,61019.0,61012.0,0.2835]
[1723634303107,0.15479106,61019.0,61011.0,0.3608]
[1723634303405,0.2835,61017.0,61012.0,0.002]
[1723634304302,0.3608,61013.0,61012.0,0.002]
[1723634305590,0.3608,61013.0,61011.0,0.001]
[1723634305795,0.0738,61012.0,61011.0,0.002]
[1723634306807,0.0738,61012.0,61009.0,0.00024601]
[1723634307304,0.56552,61012.0,61009.0,0.00024601]
[1723634308707,0.3608,61010.0,61009.0,0.00024601]
[1723634308904,0.3608,61010.0,60997.0,0.04887336]
[1723634309104,0.3608,61010.0,60993.0,0.42620522]
[1723634309105,0.3608,61005.0,60995.0,0.04887336]
[1723634309400,0.3608,61005.0,60993.0,0.40967336]
[1723634309401,0.1493,61004.0,60993.0,0.40967336]
[1723634309605,0.1493,61004.0,60994.0,0.04887336]
[1723634310698,0.1493,61004.0,60997.0,0.001]
[1723634312804,0.08252697,61004.0,60995.0,0.001]
[1723634313006,0.08252697,61004.0,60996.0,0.0721]
[1723634313208,0.08252697,61004.0,60996.0,0.12097336]
[1723634314099,0.08252697,61004.0,60997.0,0.001]
[1723634316912,0.08252697,61004.0,60997.0,0.002]
[1723634317309,0.3608,60998.0,60997.0,0.001]
[1723634317707,0.85264,60998.0,60997.0,0.001]
[1723634318008,0.85264,60998.0,60997.0,0.002]
[1723634318406,1.25264,60998.0,60993.0,0.00024601]
[1723634318606,0.5176,60997.0,60993.0,0.00024601]
[1723634321411,0.5176,60997.0,60993.0,0.00124601]
[1723634321612,0.5176,60997.0,60993.0,0.00224601]
[1723634321814,0.5186,60997.0,60993.0,0.00224601]
[1723634323109,0.5196,60997.0,60993.0,0.00224601]
[1723634323310,0.5196,60997.0,60993.0,0.00124601]
[1723634323506,0.5216,60997.0,60993.0,0.00224601]
[1723634323706,0.53131032,60997.0,60993.0,0.00224601]
[1723634327817,0.53131032,60997.0,60982.0,0.0002047]
[1723634327818,0.6443,60994.0,60982.0,0.0002047]
[1723634328018,0.3608,60989.0,60982.0,0.0002047]
[1723634329317,0.3608,60989.0,60982.0,0.0012047]
[1723634331217,0.3608,60989.0,60982.0,0.0002047]
[1723634331526,0.3638,60989.0,60982.0,0.0012047]
[1723634331916,0.3638,60989.0,60982.0,0.0022047]
[1723634332715,0.3668,60989.0,60982.0,0.0022047]
[1723634334710,0.3608,60983.0,60982.0,0.0022047]
[1723634336420,0.3648,60983.0,60982.0,0.0022047]
[1723634338124,0.3648,60983.0,60982.0,0.05107806]
[1723634338720,0.3648,60983.0,60982.0,0.0022047]
[1723634339119,0.3648,60983.0,60982.0,0.05123037]
[1723634340629,0.3648,60983.0,60982.0,0.0022047]
[1723634344727,0.3648,60983.0,60974.0,0.08170863]
[1723634344728,1.25676,60983.0,60976.0,0.04906279]
[1723634344931,1.25676,60983.0,60973.0,0.08170863]
[1723634344932,0.3608,60977.0,60973.0,0.00430104]
[1723634345135,0.1517,60976.0,60968.0,0.06540522]
[1723634345434,0.3608,60977.0,60964.0,0.44250863]
[1723634345435,0.3608,60977.0,60967.0,0.06540522]
[1723634345626,0.3608,60977.0,60969.0,0.06540522]
[1723634345828,0.00015032,60976.0,60969.0,0.06540522]
[1723634346138,0.00015032,60976.0,60970.0,0.06540522]
[1723634346433,0.00015032,60976.0,60967.0,0.08195464]
[1723634346434,0.00015032,60976.0,60971.0,0.06540522]
[1723634346734,0.00015032,60976.0,60967.0,0.08195464]
[1723634346735,0.00015032,60976.0,60970.0,0.06540522]
[1723634346934,0.00015032,60976.0,60971.0,0.06540522]
[1723634347126,0.00015032,60976.0,60967.0,0.08195464]
[1723634347127,0.00015032,60976.0,60970.0,0.06540522]
[1723634347930,0.00015032,60976.0,60971.0,0.06540522]
[1723634348127,0.00015032,60976.0,60973.0,0.06540522]
[1723634348335,0.00015032,60976.0,60974.0,0.21700522]
[1723634349343,0.00015032,60976.0,60974.0,0.1516]
[1723634349540,0.00982185,60976.0,60974.0,0.0763]
[1723634349742,0.3608,60975.0,60971.0,0.06740522]
[1723634350033,0.00015032,60976.0,60972.0,0.06540522]
[1723634350838,0.00015032,60976.0,60971.0,0.002]
[1723634351539,0.00015032,60976.0,60971.0,0.005]
[1723634351734,0.00015032,60976.0,60971.0,0.003]
[1723634351929,0.3608,60973.0,60971.0,0.003]
[1723634352125,0.6443,60973.0,60971.0,0.003]
[1723634352331,0.0769,60972.0,60971.0,0.003]
[1723634353427,0.1417731,60972.0,60963.0,0.06540522]
[1723634353638,0.1417731,60972.0,60955.0,0.08170863]
[1723634353639,0.6443,60964.0,60958.0,0.06540522]
[1723634353837,0.00013096,60963.0,60958.0,0.06540522]
[1723634354429,0.00013096,60963.0,60957.0,0.06540522]
[1723634356140,0.00013096,60963.0,60958.0,0.07740522]
[1723634356540,0.00013096,60963.0,60958.0,0.012]
[1723634358032,0.00013096,60963.0,60957.0,0.06540522]
[1723634358033,0.00113096,60963.0,60957.0,0.013]
[1723634358640,0.00113096,60963.0,60958.0,0.012]
[1723634359432,0.00213096,60963.0,60958.0,0.012]
[1723634359641,0.00113096,60963.0,60958.0,0.024]
[1723634359839,0.0109789,60963.0,60958.0,0.024]
[1723634360148,0.00113096,60963.0,60958.0,0.024]
[1723634360336,0.00213096,60963.0,60958.0,0.024]
[1723634362035,0.01162844,60963.0,60958.0,0.024]
[1723634362337,0.00113096,60963.0,60958.0,0.012]
[1723634362839,0.00113096,60963.0,60958.0,0.024]
[1723634363034,0.00113096,60963.0,60958.0,0.08940522]
[1723634363337,0.00113096,60963.0,60962.0,0.42620522]
[1723634363540,0.00113096,60963.0,60962.0,0.3608]
[1723634366237,0.00013096,60963.0,60962.0,0.3608]
[1723634368133,0.00013096,60963.0,60962.0,0.42615635]
[1723634368537,0.00013096,60963.0,60962.0,0.3608]
[1723634368942,0.00013096,60963.0,60957.0,0.3608]
[1723634369238,0.00013096,60963.0,60955.0,0.09805036]
[1723634369239,0.6443,60958.0,60952.0,0.06536955]
[1723634369438,0.5761,60957.0,60950.0,0.06536955]
[1723634369641,0.5761,60957.0,60949.0,0.06536955]
[1723634370038,0.5761,60957.0,60950.0,0.06536955]
[1723634370233,0.4339,60957.0,60951.0,0.06536955]
[1723634370547,0.4339,60957.0,60949.0,0.06536955]
[1723634371540,0.4339,60957.0,60954.0,0.01424601]
[1723634372649,0.4339,60957.0,60954.0,0.00024601]
[1723634373046,0.4339,60957.0,60954.0,0.01424601]
[1723634373538,0.3608,60957.0,60954.0,0.01424601]
[1723634374146,0.37039079,60957.0,60954.0,0.01424601]
[1723634376245,0.37139079,60957.0,60954.0,0.02824601]
[1723634379951,0.1134,60955.0,60954.0,0.02824601]
[1723634381249,0.1134,60955.0,60954.0,0.01424601]
[1723634381849,0.1134,60955.0,60954.0,0.02324601]
[1723634382949,0.4742,60955.0,60954.0,0.01824601]
[1723634383748,0.4752,60955.0,60954.0,0.01824601]
[1723634384144,0.4762,60955.0,60954.0,0.01824601]
[1723634385747,0.4762,60955.0,60946.0,0.06536955]
[1723634385954,0.4762,60955.0,60943.0,0.06536955]
[1723634385955,0.4742,60947.0,60943.0,0.06536955]
[1723634386147,0.4742,60947.0,60942.0,0.06536955]
[1723634386148,0.1134,60943.0,60942.0,0.06536955]
[1723634386349,0.1134,60943.0,60941.0,0.00012251]
[1723634386658,0.43479049,60942.0,60941.0,0.00012251]
[1723634387954,0.71839049,60942.0,60941.0,0.00012251]
[1723634388460,0.72909832,60942.0,60941.0,0.01412251]
[1723634388662,0.65529832,60942.0,60941.0,0.01412251]
[1723634388852,0.37169832,60942.0,60941.0,0.01412251]
[1723634389655,0.37269832,60942.0,60941.0,0.01412251]
[1723634390653,0.65529832,60942.0,60941.0,0.00012251]
[1723634390854,0.65629832,60942.0,60941.0,0.01212251]
[1723634391452,0.65629832,60942.0,60941.0,0.00612251]
[1723634397270,0.37269832,60942.0,60941.0,0.00612251]
[1723634400766,0.65629832,60942.0,60941.0,0.00612251]
[1723634401473,0.01189832,60942.0,60941.0,0.00612251]
[1723634401668,0.3608,60947.0,60941.0,0.49840251]
[1723634401863,0.3608,60947.0,60942.0,0.1439]
[1723634402171,0.3608,60947.0,60943.0,0.06536955]
[1723634404168,0.3608,60947.0,60942.0,0.20926955]
[1723634404369,0.3608,60947.0,60943.0,0.06536955]
[1723634404964,0.3608,60947.0,60942.0,0.20926955]
[1723634405473,0.3618,60947.0,60943.0,0.06536955]
[1723634405869,0.3618,60947.0,60942.0,0.20926955]
[1723634406886,0.7226,60947.0,60942.0,0.001]
[1723634407069,0.0697,60946.0,60942.0,0.001]
[1723634407973,0.1134,60943.0,60942.0,0.001]
[1723634409071,0.0697,60946.0,60942.0,0.001]
[1723634409271,0.7216,60947.0,60942.0,0.001]
[1723634409272,0.1134,60943.0,60942.0,0.001]
[1723634409475,0.1134,60943.0,60942.0,0.1493]
[1723634409775,0.7216,60947.0,60942.0,0.1493]
[1723634409980,0.7216,60947.0,60942.0,0.21466955]
[1723634410172,0.7216,60947.0,60943.0,0.06536955]
[1723634410370,0.7216,60947.0,60942.0,0.1493]
[1723634410371,0.7216,60947.0,60944.0,0.06536955]
[1723634410774,0.7216,60947.0,60942.0,0.1493]
[1723634410775,0.7216,60947.0,60945.0,0.06536955]
[1723634413378,0.7216,60947.0,60946.0,0.06536955]
[1723634413571,0.7216,60947.0,60944.0,0.06536955]
[1723634413880,0.7236,60947.0,60946.0,0.06536955]
[1723634414472,0.7266,60947.0,60945.0,0.06536955]
[1723634414980,0.7286,60947.0,60945.0,0.06536955]
[1723634415166,0.7256,60947.0,60946.0,0.06536955]
[1723634415372,0.7256,60947.0,60945.0,0.06536955]
[1723634415569,0.7256,60947.0,60942.0,0.1483]
[1723634415570,0.7256,60947.0,60944.0,0.06536955]
[1723634415769,0.7256,60947.0,60941.0,0.06549206]
[1723634415770,0.0719,60946.0,60941.0,0.06549206]
[1723634416079,0.3608,60942.0,60941.0,0.06549206]
[1723634416575,0.3608,60942.0,60941.0,0.00012251]
[1723634418679,0.3608,60942.0,60941.0,0.00212251]
[1723634419270,0.3608,60942.0,60941.0,0.00612251]
[1723634420573,0.37038658,60942.0,60941.0,0.00612251]
[1723634424180,0.3608,60942.0,60941.0,0.00612251]
[1723634429480,0.4299,60942.0,60941.0,0.00612251]
[1723634432883,0.7216,60942.0,60941.0,0.00612251]
[1723634441999,0.835,60942.0,60941.0,0.00612251]
[1723634443900,0.7216,60942.0,60941.0,0.00612251]
[1723634445202,0.78648732,60942.0,60941.0,0.00612251]
[1723634445994,0.06488732,60942.0,60941.0,0.00612251]
[1723634446197,0.78648732,60942.0,60941.0,0.00612251]
[1723634449304,0.7216,60942.0,60941.0,0.00612251]
[1723634449505,0.72174271,60942.0,60938.0,0.06536955]
[1723634449705,0.06485146,60941.0,60938.0,0.06536955]
[1723634449897,0.06485146,60940.0,60937.0,0.06536955]
[1723634450095,0.2836,60938.0,60936.0,0.06536955]
[1723634450294,0.3608,60937.0,60936.0,0.06536955]
[1723634451102,0.7216,60937.0,60936.0,0.06536955]
[1723634453504,0.7226,60937.0,60936.0,0.07336955]
[1723634454294,0.7226,60937.0,60936.0,0.008]
[1723634454500,0.7236,60937.0,60936.0,0.014]
[1723634455100,0.7236,60937.0,60936.0,0.0897]
[1723634455300,0.7236,60937.0,60936.0,0.1604]
[1723634457405,0.7334938,60937.0,60936.0,0.1604]
[1723634458502,0.7334938,60937.0,60936.0,0.2332]
[1723634461899,0.7334938,60937.0,60936.0,0.31491194]
[1723634462105,0.7334938,60937.0,60936.0,0.43987996]
[1723634462304,0.7334938,60937.0,60936.0,0.35816802]
[1723634463299,0.7334938,60937.0,60936.0,0.44015941]
[1723634463907,0.7334938,60937.0,60936.0,0.2332]
[1723634466894,0.7334938,60937.0,60936.0,0.014]
[1723634468101,0.8468938,60937.0,60936.0,0.014]
[1723634470010,0.4860938,60937.0,60936.0,0.22096066]
[1723634470200,0.4860938,60937.0,60936.0,0.014]
[1723634470401,0.3726938,60937.0,60936.0,0.22096036]
[1723634470706,0.3726938,60937.0,60936.0,0.21296036]
[1723634470707,0.3716938,60937.0,60936.0,0.21296036]
[1723634470901,0.4850938,60937.0,60936.0,0.21295782]
[1723634471098,0.4850938,60937.0,60936.0,0.006]
[1723634471306,0.4860938,60937.0,60936.0,0.012]
[1723634473014,0.4850938,60937.0,60936.0,0.09399139]
[1723634473308,0.4850938,60937.0,60936.0,0.2189589]
[1723634474011,0.4860938,60937.0,60936.0,0.2189589]
[1723634474306,0.4860938,60937.0,60936.0,0.012]
[1723634476010,0.8468938,60937.0,60936.0,0.012]
[1723634483913,0.8468938,60937.0,60936.0,0.09399139]
[1723634484113,0.7334938,60937.0,60936.0,0.21895985]
[1723634484321,0.7334938,60937.0,60936.0,0.33235985]
[1723634484714,0.7334938,60937.0,60936.0,0.25036846]
[1723634485211,0.7236,60937.0,60936.0,0.25036846]
[1723634485417,0.3628,60937.0,60936.0,0.34841882]
[1723634485614,0.3628,60937.0,60936.0,1.24073882]
[1723634487317,0.3628,60937.0,60936.0,1.14268846]
[1723634487621,0.3628,60937.0,60936.0,1.02928846]
[1723634487817,0.3628,60937.0,60936.0,0.62928846]
[1723634488023,0.3628,60937.0,60936.0,0.13696846]
[1723634488920,0.4762,60937.0,60936.0,0.13696846]
[1723634489512,0.4762,60937.0,60936.0,0.13696642]
[1723634492615,0.3628,60937.0,60936.0,0.13696642]
[1723634492820,0.3628,60937.0,60936.0,0.62928642]
[1723634493024,0.3628,60937.0,60936.0,0.72733678]
[1723634493221,0.3628,60937.0,60936.0,0.62928642]
[1723634493522,0.3628,60937.0,60936.0,0.72762848]
[1723634494117,0.3628,60937.0,60936.0,0.23530848]
[1723634494321,0.3628,60937.0,60936.0,0.72762277]
[1723634496127,0.3628,60937.0,60936.0,0.23530277]
[1723634496426,0.3628,60937.0,60936.0,0.13696071]
[1723634507038,0.4762,60937.0,60936.0,0.13696071]
[1723634512639,0.4762,60937.0,60936.0,0.23530277]
[1723634512940,0.4762,60937.0,60936.0,0.13696071]
[1723634513130,0.4762,60937.0,60936.0,0.13696588]
[1723634513333,0.4762,60937.0,60936.0,0.012]
[1723634513534,0.4762,60937.0,60936.0,0.00340368]
[1723634513836,0.4762,60937.0,60936.0,0.0690195]
[1723634514030,0.3628,60937.0,60936.0,0.00340368]
[1723634514446,0.3628,60937.0,60936.0,0.12838039]
[1723634515642,0.3628,60937.0,60936.0,0.22672245]
[1723634515939,0.3608,60950.0,60936.0,1.4603033]
[1723634516138,0.4742,60955.0,60947.0,0.1134]
[1723634516333,0.1134,60952.0,60947.0,0.36785739]
[1723634516533,0.3608,60950.0,60947.0,0.33666922]
[1723634516744,0.3608,60950.0,60947.0,0.23837671]
[1723634517543,0.3608,60950.0,60947.0,0.23834015]
[1723634517742,0.3608,60955.0,60947.0,1.22887266]
[1723634517941,0.3608,60955.0,60953.0,0.08188043]
[1723634518134,0.3608,60955.0,60954.0,0.20648489]
[1723634518334,0.3608,60955.0,60953.0,0.08182576]
[1723634518532,0.3608,60955.0,60954.0,0.20637598]
[1723634518745,0.3608,60955.0,60954.0,0.12455022]
[1723634519334,0.3608,60955.0,60948.0,0.35194601]
[1723634519335,0.3608,60955.0,60953.0,0.08177508]
[1723634519941,0.3608,60955.0,60952.0,0.08177508]
[1723634520547,0.00024601,60961.0,60954.0,0.2834]
[1723634520839,0.00024601,60961.0,60960.0,0.08176161]
[1723634521048,0.00024601,60961.0,60960.0,0.19679987]
[1723634521241,0.00024601,60961.0,60960.0,0.2784837]
[1723634521546,0.3608,60971.0,60960.0,1.45380321]
[1723634521745,0.3608,60971.0,60967.0,0.04900743]
[1723634522537,0.3608,60975.0,60970.0,0.3608]
[1723634522738,0.3608,60975.0,60971.0,0.06534325]
[1723634522944,0.36104601,60975.0,60974.0,0.06534325]
[1723634523142,0.36104601,60975.0,60970.0,0.3608]
[1723634523143,0.36104601,60975.0,60971.0,0.06534325]
[1723634523938,0.00024601,60975.0,60971.0,0.06534325]
[1723634524145,0.00024601,60975.0,60973.0,0.04887087]
[1723634524552,0.3608,60984.0,60974.0,0.492]
[1723634524744,0.3608,60984.0,60972.0,0.04887087]
[1723634524943,0.3608,60984.0,60973.0,0.0715]
[1723634525143,0.37062595,60984.0,60973.0,0.0715]
[1723634525545,0.014,60975.0,60973.0,0.0715]
[1723634526039,0.014,60975.0,60974.0,0.492]
[1723634526449,0.014,60975.0,60974.0,0.892]
[1723634526643,0.38462595,60984.0,60974.0,0.892]
[1723634526841,0.38462595,60984.0,60973.0,0.0715]
[1723634527350,0.38462595,60984.0,60971.0,0.2834]
[1723634527351,0.2834,60983.0,60970.0,0.40967087]
[1723634527553,0.2834,60983.0,60967.0,0.00978337]
[1723634527554,0.3608,60975.0,60967.0,0.04887087]
[1723634527753,0.3608,60968.0,60966.0,0.00024601]
[1723634529353,0.3608,60983.0,60967.0,0.3608]
[1723634529560,0.2834,60976.0,60973.0,0.3608]
[1723634530059,0.7754,60976.0,60973.0,0.3608]
[1723634530550,0.2834,60976.0,60973.0,0.3608]
[1723634531257,0.2834,60976.0,60968.0,0.00024601]
[1723634531649,0.2834,60970.0,60968.0,0.00024601]
[1723634531844,0.2834,60970.0,60966.0,0.001]
[1723634532051,0.77548,60970.0,60966.0,0.001]
[1723634532249,0.77548,60970.0,60961.0,0.3608]
[1723634532444,0.2074,60969.0,60961.0,0.3608]
[1723634533657,0.011,60968.0,60966.0,0.002]
[1723634533857,0.011,60968.0,60966.0,0.003]
[1723634534047,0.49208,60967.0,60966.0,0.003]
[1723634534448,0.89208,60967.0,60966.0,0.003]
[1723634535855,0.89208,60967.0,60966.0,0.002]
[1723634536947,0.89208,60967.0,60966.0,0.003]
[1723634536948,0.90608,60967.0,60966.0,0.003]
[1723634537157,0.50608,60967.0,60966.0,0.003]
[1723634538350,0.014,60967.0,60966.0,0.003]
[1723634538755,0.50608,60967.0,60966.0,0.003]
[1723634539058,0.014,60967.0,60966.0,0.001]
[1723634539249,0.02377979,60967.0,60966.0,0.001]
[1723634539845,0.03777979,60967.0,60966.0,0.002]
[1723634540045,0.028,60967.0,60966.0,0.3628]
[1723634540248,0.01550159,60967.0,60966.0,0.3628]
[1723634543558,0.01550159,60967.0,60966.0,0.42814325]
[1723634544052,0.014,60967.0,60966.0,0.3618]
[1723634544262,0.015,60967.0,60966.0,1.40488]
[1723634544469,0.015,60967.0,60966.0,1.48556383]
[1723634544470,0.001,60967.0,60966.0,1.48556383]
[1723634544660,0.013,60967.0,60966.0,1.48656383]
[1723634545157,0.013,60967.0,60966.0,1.40488]
[1723634545364,0.013,60967.0,60966.0,1.52976449]
[1723634546953,0.013,60967.0,60966.0,0.56934382]
[1723634547154,0.013,60967.0,60966.0,0.3628]
[1723634548162,0.013,60967.0,60960.0,0.04901268]
[1723634548163,0.90508,60967.0,60960.0,0.04901268]
[1723634548356,0.2834,60966.0,60959.0,0.00024601]
[1723634550265,0.77952,60966.0,60959.0,0.00024601]
[1723634550761,0.2874,60966.0,60959.0,0.00024601]
[1723634551653,0.06440849,60960.0,60959.0,0.00024601]
[1723634552166,0.55652849,60960.0,60959.0,0.00024601]
[1723634552566,0.49212,60960.0,60959.0,0.00024601]
[1723634552764,0.55673564,60960.0,60959.0,0.00024601]
[1723634553066,0.77552,60960.0,60959.0,0.00024601]
[1723634553668,0.2834,60960.0,60959.0,0.00024601]
[1723634554160,0.2874,60960.0,60959.0,0.00024601]
[1723634555372,0.006,60960.0,60959.0,0.00024601]
[1723634556070,0.49812,60960.0,60959.0,0.00024601]
[1723634556257,0.49612,60960.0,60954.0,0.3608]
[1723634556459,0.0694,60959.0,60954.0,0.3608]
[1723634556767,0.02658017,60958.0,60954.0,0.3608]
[1723634557064,0.02658268,60957.0,60954.0,0.3608]
[1723634557270,0.0694,60959.0,60954.0,0.3608]
[1723634557460,0.02658265,60958.0,60954.0,0.3608]
[1723634557659,0.02658265,60958.0,60949.0,0.00024601]
[1723634557860,0.06468158,60950.0,60949.0,0.00024601]
[1723634558176,0.06468158,60951.0,60949.0,0.00024601]
[1723634558559,0.00024601,60956.0,60949.0,0.00024601]
[1723634559161,0.00024601,60956.0,60949.0,0.04925869]
[1723634559366,0.00024601,60956.0,60949.0,0.00024601]
[1723634559570,0.00024601,60956.0,60954.0,0.001]
[1723634560065,0.00024601,60956.0,60955.0,0.3608]
[1723634560471,0.00924601,60956.0,60954.0,0.001]
[1723634560667,0.00924601,60956.0,60955.0,0.3608]
[1723634561175,0.00924601,60956.0,60954.0,0.001]
[1723634563867,0.01424601,60956.0,60954.0,0.002]
[1723634565671,0.01424601,60956.0,60954.0,0.001]
[1723634566374,0.01624601,60956.0,60954.0,0.001]
[1723634566775,0.01424601,60956.0,60954.0,0.002]
[1723634567271,0.01424601,60956.0,60955.0,0.3608]
[1723634567468,0.01624601,60956.0,60955.0,0.3608]
[1723634568573,0.01624601,60956.0,60954.0,0.002]
[1723634569071,0.00224601,60956.0,60954.0,0.001]
[1723634569273,0.00224601,60956.0,60955.0,0.3608]
[1723634569472,0.00224601,60956.0,60955.0,0.3618]
[1723634569775,0.01624601,60956.0,60955.0,0.002]
[1723634570372,0.01624601,60956.0,60955.0,0.001]
[1723634570573,0.01424601,60956.0,60955.0,0.001]
[1723634571172,0.01624601,60956.0,60955.0,0.001]
[1723634571769,0.01624601,60956.0,60954.0,0.001]
[1723634572174,0.00224601,60956.0,60954.0,0.002]
[1723634572572,0.01624601,60956.0,60954.0,0.002]
[1723634572772,0.03024601,60956.0,60955.0,0.001]
[1723634572972,0.03024601,60956.0,60955.0,0.002]
[1723634573379,0.00224601,60956.0,60955.0,0.001]
[1723634575381,0.49440601,60956.0,60951.0,0.04901268]
[1723634575682,0.49440601,60956.0,60954.0,0.001]
[1723634575683,0.3608,60955.0,60954.0,0.001]
[1723634576880,0.00224601,60956.0,60954.0,0.001]
[1723634577476,0.00224601,60956.0,60955.0,0.001]
[1723634577677,0.01624601,60956.0,60955.0,0.001]
[1723634578179,0.01624601,60956.0,60955.0,0.3618]
[1723634578585,0.01424601,60956.0,60955.0,0.42715025]
[1723634578882,0.01424601,60956.0,60955.0,0.3618]
[1723634578883,0.01724601,60956.0,60955.0,0.3618]
[1723634579083,0.00324601,60956.0,60955.0,0.3608]
[1723634579288,0.00324601,60956.0,60955.0,0.42615025]
[1723634579584,0.00324601,60956.0,60955.0,0.3608]
[1723634579784,0.00324601,60956.0,60955.0,0.42615025]
[1723634580296,0.00324601,60956.0,60955.0,0.3608]
[1723634581086,0.00324601,60956.0,60955.0,0.63932687]
[1723634581296,0.01724601,60956.0,60955.0,0.5748]
[1723634582177,0.04382798,60956.0,60955.0,0.214]
[1723634582579,0.01424601,60956.0,60955.0,0.214]
[1723634582982,0.01724601,60956.0,60955.0,0.215]
[1723634584182,0.01724601,60956.0,60955.0,0.1429]
[1723634584380,0.04382747,60956.0,60955.0,0.1429]
[1723634584791,0.04382747,60956.0,60955.0,0.002]
[1723634588390,0.08210577,60956.0,60955.0,0.89416]
[1723634588592,0.08210577,60956.0,60955.0,1.11737899]
[1723634588593,0.01724601,60956.0,60955.0,1.11737899]
[1723634589300,0.01724601,60956.0,60955.0,1.15964032]
[1723634589907,0.01724601,60956.0,60955.0,1.31964032]
[1723634591614,0.01724601,60956.0,60955.0,1.17908648]
[1723634591809,0.01724601,60956.0,60955.0,1.18860356]
[1723634592310,0.01724601,60956.0,60955.0,1.32912162]
[1723634592513,0.01724601,60956.0,60955.0,1.18860356]
[1723634594611,0.01724601,60956.0,60955.0,1.91020356]
[1723634595316,0.3608,60976.0,60955.0,1.91020356]
[1723634595613,0.3608,60976.0,60967.0,0.3608]
[1723634596016,0.41575976,60979.0,60967.0,0.12135702]
[1723634596224,0.41575976,60979.0,60969.0,0.04905702]
[1723634596225,0.3608,60976.0,60969.0,0.04905702]
[1723634596415,0.2834,60973.0,60968.0,0.04905702]
[1723634596608,0.2834,60973.0,60967.0,0.36104601]
[1723634596609,0.12318909,60972.0,60967.0,0.36104601]
[1723634596812,0.12318909,60971.0,60967.0,0.36104601]
[1723634597117,0.0265761,60970.0,60967.0,0.36104601]
[1723634597316,0.0265761,60969.0,60967.0,0.36104601]
[1723634597613,0.0265761,60968.0,60967.0,0.36104601]
[1723634597817,0.12318909,60972.0,60967.0,0.36104601]
[1723634598014,0.0265761,60971.0,60967.0,0.36104601]
[1723634598226,0.0265761,60970.0,60967.0,0.36104601]
[1723634598420,0.0265761,60969.0,60967.0,0.36104601]
[1723634598614,0.0265761,60968.0,60967.0,0.36204601]
[1723634599216,0.0265761,60968.0,60967.0,0.36304601]
[1723634599722,0.00973113,60972.0,60967.0,0.36304601]
[1723634599918,0.02657611,60971.0,60967.0,0.36304601]
[1723634600119,0.02657611,60970.0,60967.0,0.36304601]
[1723634600320,0.02657611,60969.0,60967.0,0.36304601]
[1723634600518,0.02657606,60968.0,60967.0,0.36304601]
[1723634600716,0.02657606,60972.0,60967.0,0.36304601]
[1723634600915,0.02657606,60971.0,60967.0,0.36304601]
[1723634601118,0.02657606,60970.0,60967.0,0.00224601]
[1723634601315,0.02757606,60969.0,60967.0,0.00224601]
[1723634601521,0.02657606,60968.0,60967.0,0.00224601]
[1723634602523,0.02657606,60968.0,60967.0,0.00124601]
[1723634602819,0.001,60971.0,60967.0,0.00224601]
[1723634603021,0.02657606,60970.0,60967.0,0.00224601]
[1723634603217,0.02657606,60970.0,60967.0,0.00324601]
[1723634603218,0.003,60969.0,60967.0,0.00324601]
[1723634603418,0.02657606,60968.0,60967.0,0.00324601]
[1723634603613,0.003,60968.0,60967.0,0.00324601]
[1723634604417,0.003,60968.0,60967.0,0.05230303]
[1723634604619,0.003,60968.0,60967.0,0.00324601]
[1723634605324,0.001,60968.0,60967.0,0.00224601]
[1723634605921,0.001,60968.0,60967.0,0.00124601]
[1723634606530,0.004,60968.0,60967.0,0.00224601]
[1723634612322,0.004,60968.0,60967.0,0.55973537]
[1723634612520,0.004,60968.0,60967.0,1.27099033]
[1723634612723,0.004,60968.0,60967.0,1.18922863]
[1723634612920,0.004,60968.0,60967.0,1.28734267]
[1723634613125,0.004,60968.0,60967.0,1.18922863]
[1723634613526,0.004,60968.0,60967.0,1.19890397]
[1723634614027,0.004,60968.0,60967.0,1.33754793]
[1723634614223,0.004,60968.0,60967.0,1.19890397]
[1723634614424,0.004,60968.0,60967.0,1.29703951]
[1723634616434,0.004,60968.0,60967.0,1.19890397]
[1723634617533,0.004,60968.0,60967.0,0.89708339]
[1723634617731,0.004,60968.0,60967.0,0.61922863]
[1723634618335,0.004,60968.0,60967.0,0.12714863]
[1723634620635,0.004,60968.0,60967.0,0.1271393]
[1723634621434,0.004,60968.0,60967.0,1.1892193]
[1723634621628,0.004,60968.0,60967.0,1.28739872]
[1723634621934,0.004,60968.0,60967.0,1.1892193]
[1723634622532,0.004,60968.0,60967.0,1.28737301]
[1723634623135,0.004,60968.0,60967.0,1.1892193]
[1723634623334,0.004,60968.0,60967.0,1.32802736]
[1723634623534,0.004,60968.0,60967.0,1.1892193]
[1723634626738,0.00971823,60976.0,60967.0,1.1892193]
[1723634626939,0.00024601,60979.0,60975.0,0.42621141]
[1723634627138,0.00024601,60979.0,60978.0,0.04905856]
[1723634627139,0.00978002,60979.0,60978.0,0.04905856]
[1723634627341,0.00024601,60979.0,60978.0,0.04905856]
[1723634627539,0.00024601,60979.0,60977.0,0.04905856]
[1723634628336,0.00024601,60979.0,60976.0,0.06541141]
[1723634628539,0.01010526,60979.0,60975.0,0.3608]
[1723634628736,0.00024601,60979.0,60975.0,0.3608]
[1723634630240,0.00024601,60979.0,60977.0,0.04905937]
[1723634631740,0.00024601,60979.0,60976.0,0.04905937]
[1723634632043,0.00024601,60979.0,60975.0,0.3608]
[1723634632044,0.00024601,60979.0,60975.0,0.40985937]
[1723634632944,0.00024601,60979.0,60977.0,0.001]
[1723634633743,0.00124601,60979.0,60977.0,0.001]
[1723634634653,0.00024601,60979.0,60977.0,0.001]
[1723634634836,0.00124601,60979.0,60977.0,0.002]
[1723634635041,0.00124601,60979.0,60977.0,0.3628]
[1723634635451,0.00124601,60979.0,60977.0,0.41185937]
[1723634636044,0.00124601,60979.0,60977.0,0.3628]
[1723634636245,0.01087273,60979.0,60977.0,0.3628]
[1723634636445,0.00124601,60979.0,60977.0,0.41185937]